[Event "CZE-ch Youth G10-G12-G14 2022"]
[Site "Luhacovice"]
[Date "2022.03.16"]
[Round "6.42"]
[White "Myskova, Veronika"]
[Black "Zilava Lucie"]
[Result "1-0"]
[ECO "A48"]
[WhiteElo "1117"]
[BlackElo "1059"]
[Annotator "NA"]
[PlyCount "101"]
[EventDate "2022.03.12"]
[EventType "swiss"]
[EventCountry "CZE"]
[SourceTitle "playchess.com"]
[Source "ChessBase"]
[SourceQuality "1"]
[TimeControl "40/5400+30:1800+30"]

1. d4 {[%emt 0:00:04]} Nf6 {[%emt 0:00:16]} 2. Bf4 {[%emt 0:00:30]} g6 {[%emt 0:00:19]} 3. Nf3 {[%emt 0:00:42]} Bg7 {[%emt 0:00:27]} 4. e3 {[%emt 0:00:44]} O-O {[%emt 0:00:12]} 5. Be2 {[%emt 0:00:56]} d6 {[%emt 0:00:38]} 6. Nc3 {[%emt 0:01:11]} c5 {[%emt 0:02:27]} 7. O-O {[%emt 0:06:02]} Nc6 {[%emt 0:12:23]} 8. dxc5 {[%emt 0:12:58]} dxc5 {[%emt 0:04:33]} 9. Bc4 {[%emt 0:03:53]} Bg4 {[%emt 0:08:35]} 10. Be2 {[%emt 0:02:37]} Re8 {[%emt 0:04:19]} 11. Qxd8 {[%emt 0:14:45]} Raxd8 {[%emt 0:01:56]} 12. Rad1 {[%emt 0:07:34]} Rxd1 {[%emt 0:16:14]} 13. Rxd1 {[%emt 0:00:46]} e5 {[%emt 0:01:39]} 14. Bg3 {[%emt 0:01:50]} Nh5 {[%emt 0:06:01]} 15. Bh4 {[%emt 0:04:03]} Bf6 {[%emt 0:00:44]} 16. Bxf6 {[%emt 0:00:35]} Nxf6 {[%emt 0:00:10]} 17. Na4 {[%emt 0:02:13]} b6 {[%emt 0:04:47]} 18. Bb5 {[%emt 0:00:10]} Re6 {[%emt 0:00:24]} 19. Bc4 {[%emt 0:00:26]} Re8 {[%emt 0:01:11]} 20. Rd6 {[%emt 0:00:15]} Na5 {[%emt 0:01:05]} 21. Bb5 {[%emt 0:04:55]} Ne4 {[%emt 0:02:52]} 22. Rxg6+ {[%emt 0:03:31]} hxg6 {[%emt 0:00:39]} 23. Bxe8 {[%emt 0:00:07]} Nd6 {[%emt 0:00:43]} 24. Nxe5 {[%emt 0:00:37]} Be6 {[%emt 0:00:52]} 25. Bd7 {[%emt 0:02:35]} Bxd7 {[%emt 0:02:39]} 26. Nxd7 {[%emt 0:00:18]} Kg7 {[%emt 0:00:20]} 27. b3 {[%emt 0:01:00]} f5 {[%emt 0:01:29]} 28. f4 {[%emt 0:00:28]} Ne4 {[%emt 0:00:30]} 29. g3 {[%emt 0:00:47]} c4 {[%emt 0:01:33]} 30. b4 {[%emt 0:04:41]} Nb7 {[%emt 0:00:42]} 31. Nb2 {[%emt 0:01:17]} c3 {[%emt 0:00:28]} 32. Nc4 {[%emt 0:00:13]} Nbd6 {[%emt 0:01:28]} 33. Nxd6 {[%emt 0:01:23]} Nxd6 {[%emt 0:01:33]} 34. Ne5 {[%emt 0:02:46]} Nb5 {[%emt 0:00:52]} 35. Nc4 {[%emt 0:00:20]} Kf6 {[%emt 0:00:25]} 36. a4 {[%emt 0:00:27]} Nc7 {[%emt 0:00:32]} 37. Kf2 {[%emt 0:00:48]} Ke6 {[%emt 0:00:25]} 38. Ne5 {[%emt 0:00:46]} Kf6 {[%emt 0:00:42]} 39. h3 {[%emt 0:00:55]} Nd5 {[%emt 0:00:47]} 40. Nc6 {[%emt 0:01:53]} a6 {[%emt 0:00:21]} 41. Kf3 {[%emt 0:31:53]} Ke6 {[%emt 0:30:41]} 42. e4 {[%emt 0:02:17]} fxe4+ {[%emt 0:00:25]} 43. Kxe4 {[%emt 0:00:11]} Kd6 {[%emt 0:00:03]} 44. b5 {[%emt 0:01:15]} a5 {[%emt 0:01:10]} 45. g4 {[%emt 0:00:42]} Nb4 {[%emt 0:00:00]} 46. Nxb4 {[%emt 0:01:11]} axb4 {[%emt 0:00:08]} 47. Kd3 {[%emt 0:00:17]} Kd5 {[%emt 0:01:01]} 48. h4 {[%emt 0:00:13]} Ke6 {[%emt 0:00:37]} 49. h5 {[%emt 0:00:54]} gxh5 {[%emt 0:00:15]} 50. gxh5 {[%emt 0:00:05]} Kf6 {[%emt 0:00:02]} 51. Kc4 {[%emt 0:00:28]} 1-0

[Event "CZE-ch Youth G10-G12-G14 2022"]
[Site "Luhacovice"]
[Date "2022.03.16"]
[Round "6.43"]
[White "Dufkova, Tereza"]
[Black "Urvalkova Ema"]
[Result "1-0"]
[ECO "D01"]
[WhiteElo "1014"]
[BlackElo "1000"]
[Annotator "NA RC"]
[PlyCount "128"]
[EventDate "2022.03.12"]
[EventType "swiss"]
[EventCountry "CZE"]
[SourceTitle "playchess.com"]
[Source "ChessBase"]
[SourceQuality "1"]
[TimeControl "40/5400+30:1800+30"]

1. d4 {[%emt 0:00:34]} Nf6 {[%emt 0:00:08]} 2. Nc3 {[%emt 0:00:17]} e6 {[%emt 0:00:10]} 3. Bg5 {[%emt 0:01:19]} d5 {[%emt 0:00:25]} 4. e3 {[%emt 0:00:07]} Be7 {[%emt 0:00:30]} 5. Bd3 {[%emt 0:00:13]} b6 {[%emt 0:00:10]} 6. Bxf6 {[%emt 0:00:01]} Bxf6 {[%emt 0:00:18]} 7. Nf3 {[%emt 0:00:03]} Bb7 {[%emt 0:00:36]} 8. e4 {[%emt 1:31:56]} dxe4 {[%emt 1:32:13]} 9. Nxe4 {[%emt 0:00:30]} O-O {[%emt 0:00:30]} 10. O-O {[%emt 0:00:30]} Bxd4 {[%emt 0:00:30]} 11. Neg5 {[%emt 0:00:30]} g6 {[%emt 0:00:30]} 12. c3 {[%emt 0:00:30]} Bg7 {[%emt 0:00:30]} 13. Re1 {[%emt 0:00:30]} Na6 {[%emt 0:00:30]} 14. Ne4 {[%emt 0:00:30]} Qe7 {[%emt 0:00:30]} 15. Qe2 {[%emt 0:00:30]} Nc5 {[%emt 0:00:30]} 16. Nxc5 {[%emt 0:00:30]} Qxc5 {[%emt 0:00:30]} 17. Rac1 {[%emt 0:00:30]} Rad8 {[%emt 0:00:30]} 18. b4 {[%emt 0:00:30]} Qd5 {[%emt 0:00:30]} 19. Red1 {[%emt 0:00:30]} Qc6 {[%emt 0:00:30]} 20. Bb5 {[%emt 0:00:30]} Rxd1+ {[%emt 0:00:30]} 21. Rxd1 {[%emt 0:00:30]} Qxc3 {[%emt 0:00:30]} 22. Rb1 {[%emt 0:00:30]} Bxf3 {[%emt 0:00:30]} 23. Qxf3 {[%emt 0:00:30]} Qc2 {[%emt 0:00:30]} 24. Rd1 {[%emt 0:00:30]} Qxa2 {[%emt 0:00:30]} 25. h4 {[%emt 0:00:30]} Qb2 {[%emt 0:00:30]} 26. Qe4 {[%emt 0:00:30]} c5 {[%emt 0:00:30]} 27. Rb1 {[%emt 0:00:30]} Qd4 {[%emt 0:00:30]} 28. Qxd4 {[%emt 0:00:30]} Bxd4 {[%emt 0:00:30]} 29. Kf1 {[%emt 0:00:30]} Rc8 {[%emt 0:00:30]} 30. Rc1 {[%emt 0:00:30]} Kf8 {[%emt 0:00:30]} 31. Ke2 {[%emt 0:00:30]} Ke7 {[%emt 0:00:30]} 32. Kd3 {[%emt 0:00:30]} Bxf2 {[%emt 0:00:30]} 33. Rc4 {[%emt 0:00:30]} Kd6 {[%emt 0:00:30]} 34. Ba6 {[%emt 0:00:30]} Rc7 {[%emt 0:00:30]} 35. Ke2 {[%emt 0:00:30]} Bd4 {[%emt 0:00:30]} 36. Kd3 {[%emt 0:00:30]} Kd5 {[%emt 0:00:30]} 37. Rc2 {[%emt 0:00:30]} e5 {[%emt 0:00:30]} 38. Bc4+ {[%emt 0:00:30]} Kd6 {[%emt 0:00:30]} 39. b5 {[%emt 0:00:30]} f5 {[%emt 0:00:30]} 40. g3 {[%emt 0:00:30]} e4+ {[%emt 0:00:30]} 41. Ke2 {[%emt 0:30:30]} Ke5 {[%emt 0:30:30]} 42. Kf1 {[%emt 0:00:30]} f4 {[%emt 0:00:30]} 43. gxf4+ {[%emt 0:00:30]} Kxf4 {[%emt 0:00:30]} 44. Rh2 {[%emt 0:00:30]} h6 {[%emt 0:00:30]} 45. Rg2 {[%emt 0:00:30]} g5 {[%emt 0:00:30]} 46. h5 {[%emt 0:00:30]} Re7 {[%emt 0:00:30]} 47. Ke2 {[%emt 0:00:30]} g4 {[%emt 0:00:30]} 48. Kd2 {[%emt 0:00:30]} Kf3 {[%emt 0:00:30]} 49. Bf1 {[%emt 0:00:30]} e3+ {[%emt 0:00:30]} 50. Kd3 {[%emt 0:00:30]} g3 {[%emt 0:00:30]} 51. Rc2 {[%emt 0:00:30]} Rg7 {[%emt 0:00:30]} 52. Be2+ {[%emt 0:00:30]} Kf4 {[%emt 0:00:30]} 53. Bf1 {[%emt 0:00:30]} Rg5 {[%emt 0:00:30]} 54. Ra2 {[%emt 0:00:30]} Rxh5 {[%emt 0:00:30]} 55. Rxa7 {[%emt 0:00:30]} Rf5 {[%emt 0:00:30]} 56. Ke2 {[%emt 0:00:30]} c4 {[%emt 0:00:30]} 57. Rd7 {[%emt 0:00:30]} Bc5 {[%emt 0:00:30]} 58. Rd1 {[%emt 0:00:30]} Rh5 {[%emt 0:00:30]} 59. Bg2 {[%emt 0:00:30]} Rh2 {[%emt 0:00:30]} 60. Rg1 {[%emt 0:00:30]} c3 {[%emt 0:00:30]} 61. Kd3 {[%emt 0:00:30]} e2 {[%emt 0:00:30]} 62. Re1 {[%emt 0:00:30]} Rxg2 {[%emt 0:00:30]} 63. Kxc3 {[%emt 0:00:30]} Kf3 {[%emt 0:00:30]} 64. Kd2 {[%emt 0:00:30]} Be3+ {[%emt 0:00:30]} 1-0

[Event "CZE-ch Youth G10-G12-G14 2022"]
[Site "Luhacovice"]
[Date "2022.03.17"]
[Round "7.1"]
[White "Kusova, Nikola"]
[Black "Lackova, Lucie"]
[Result "0-1"]
[ECO "C28"]
[WhiteElo "1227"]
[BlackElo "1142"]
[Annotator "NA"]
[PlyCount "56"]
[EventDate "2022.03.12"]
[EventType "swiss"]
[EventCountry "CZE"]
[SourceTitle "playchess.com"]
[Source "ChessBase"]
[SourceQuality "1"]
[TimeControl "40/5400+30:1800+30"]

1. e4 {[%emt 0:00:03]} e5 {[%emt 0:00:15]} 2. Nc3 {[%emt 0:00:11]} Nf6 {[%emt 0:00:10]} 3. Bc4 {[%emt 0:00:11]} Nc6 {[%emt 0:00:17]} 4. d3 {[%emt 0:00:14]} Bb4 {[%emt 0:00:08]} 5. Nge2 {[%emt 0:00:15]} d5 {[%emt 0:01:53]} 6. exd5 {[%emt 0:00:53]} Nxd5 {[%emt 0:00:30]} 7. O-O {[%emt 0:01:17]} Be6 {[%emt 0:02:39]} 8. Bxd5 {[%emt 0:01:49]} Bxd5 {[%emt 0:01:46]} 9. f4 {[%emt 0:02:13]} O-O {[%emt 0:00:57]} 10. f5 {[%emt 0:00:29]} f6 {[%emt 0:00:56]} 11. Be3 {[%emt 0:08:50]} Re8 {[%emt 0:04:51]} 12. a3 {[%emt 0:01:19]} Bxc3 {[%emt 0:01:06]} 13. Nxc3 {[%emt 0:00:21]} Bf7 {[%emt 0:06:37]} 14. Qg4 {[%emt 0:03:02]} Kh8 {[%emt 0:02:23]} 15. Rf3 {[%emt 0:06:33]} g6 {[%emt 0:08:32]} 16. Rh3 {[%emt 0:02:49]} g5 {[%emt 0:08:51]} 17. Rh6 {[%emt 0:02:56]} Bg8 {[%emt 0:05:49]} 18. Qh5 {[%emt 0:01:44]} Kg7 {[%emt 0:06:47]} 19. Ne4 {[%emt 0:03:06]} Rf8 {[%emt 0:05:16]} 20. Nc5 {[%emt 0:04:03]} Nd4 {[%emt 0:03:51]} 21. Bxd4 {[%emt 0:00:45]} Qxd4+ {[%emt 0:00:16]} 22. Kh1 {[%emt 0:02:23]} Qxc5 {[%emt 0:01:32]} 23. c3 {[%emt 0:03:18]} Rad8 {[%emt 0:00:51]} 24. Rd1 {[%emt 0:03:03]} Qf2 {[%emt 0:01:51]} 25. Qh3 {[%emt 0:03:47]} Rxd3 {[%emt 0:06:22]} 26. Qxd3 {[%emt 0:02:02]} Kxh6 {[%emt 0:00:18]} 27. Qh3+ {[%emt 0:00:55]} Kg7 {[%emt 0:00:27]} 28. g3 {[%emt 0:03:40]} Qf3+ {[%emt 0:00:21]} 0-1

[Event "CZE-ch Youth G10-G12-G14 2022"]
[Site "Luhacovice"]
[Date "2022.03.17"]
[Round "7.2"]
[White "Stepankova Linda"]
[Black "Janouskova, Eliska"]
[Result "0-1"]
[ECO "C77"]
[WhiteElo "1000"]
[BlackElo "1167"]
[Annotator "NA"]
[PlyCount "62"]
[EventDate "2022.03.12"]
[EventType "swiss"]
[EventCountry "CZE"]
[SourceTitle "playchess.com"]
[Source "ChessBase"]
[SourceQuality "1"]
[TimeControl "40/5400+30:1800+30"]

1. e4 {[%emt 0:00:05]} e5 {[%emt 0:00:20]} 2. Nf3 {[%emt 0:00:04]} Nc6 {[%emt 0:00:26]} 3. Bb5 {[%emt 0:00:06]} a6 {[%emt 0:01:11]} 4. Ba4 {[%emt 0:00:33]} Bc5 {[%emt 0:02:36]} 5. Nc3 {[%emt 0:00:51]} b5 {[%emt 0:01:40]} 6. Bb3 {[%emt 0:00:37]} Nf6 {[%emt 0:02:34]} 7. d3 {[%emt 0:01:38]} h6 {[%emt 0:02:34]} 8. Be3 {[%emt 0:04:19]} Bb4 {[%emt 0:07:09]} 9. O-O {[%emt 0:01:52]} Bxc3 {[%emt 0:01:57]} 10. bxc3 {[%emt 0:00:51]} d5 {[%emt 0:01:06]} 11. exd5 {[%emt 0:03:33]} Nxd5 {[%emt 0:00:22]} 12. c4 {[%emt 0:04:04]} Nf6 {[%emt 0:04:46]} 13. Re1 {[%emt 0:09:25]} O-O {[%emt 0:02:47]} 14. c3 {[%emt 0:05:16]} Bg4 {[%emt 0:02:52]} 15. a4 {[%emt 0:04:32]} bxc4 {[%emt 0:03:28]} 16. Bxc4 {[%emt 0:01:53]} Nd5 {[%emt 0:06:13]} 17. h3 {[%emt 0:09:21]} Nxc3 {[%emt 0:07:33]} 18. Qb3 {[%emt 0:09:42]} Bxf3 {[%emt 0:04:44]} 19. gxf3 {[%emt 0:02:11]} Nd4 {[%emt 0:02:07]} 20. Qxc3 {[%emt 0:03:45]} Nxf3+ {[%emt 0:01:38]} 21. Kg2 {[%emt 0:02:39]} Nxe1+ {[%emt 0:01:46]} 22. Rxe1 {[%emt 0:00:41]} Re8 {[%emt 0:01:51]} 23. Kg3 {[%emt 0:07:27]} Qd6 {[%emt 0:04:54]} 24. f4 {[%emt 0:04:19]} Qg6+ {[%emt 0:04:24]} 25. Kf2 {[%emt 0:01:50]} exf4 {[%emt 0:01:03]} 26. Bxf4 {[%emt 0:00:25]} Qf5 {[%emt 0:00:48]} 27. Rxe8+ {[%emt 0:01:36]} Rxe8 {[%emt 0:00:22]} 28. Kg3 {[%emt 0:01:45]} Re2 {[%emt 0:04:02]} 29. d4 {[%emt 0:10:11]} Qg6+ {[%emt 0:03:08]} 30. Kh4 {[%emt 0:00:20]} Re4 {[%emt 0:00:20]} 31. Qf3 {[%emt 0:02:05]} Qg5# {[%emt 0:00:19]} 0-1

[Event "CZE-ch Youth G10-G12-G14 2022"]
[Site "Luhacovice"]
[Date "2022.03.17"]
[Round "7.3"]
[White "Vancakova, Veronika"]
[Black "Vanickova Natalie"]
[Result "0-1"]
[ECO "D26"]
[WhiteElo "1300"]
[BlackElo "1000"]
[Annotator "NA"]
[PlyCount "86"]
[EventDate "2022.03.12"]
[EventType "swiss"]
[EventCountry "CZE"]
[SourceTitle "playchess.com"]
[Source "ChessBase"]
[SourceQuality "1"]
[TimeControl "40/5400+30:1800+30"]

1. d4 {[%emt 0:00:06]} d5 {[%emt 0:00:18]} 2. c4 {[%emt 0:00:07]} dxc4 {[%emt 0:00:20]} 3. e3 {[%emt 0:00:06]} Nf6 {[%emt 0:00:17]} 4. Bxc4 {[%emt 0:00:05]} e6 {[%emt 0:00:46]} 5. Nc3 {[%emt 0:02:04]} a6 {[%emt 0:01:21]} 6. Nf3 {[%emt 0:03:54]} b5 {[%emt 0:00:54]} 7. Bb3 {[%emt 0:01:42]} Bb7 {[%emt 0:00:32]} 8. Bd2 {[%emt 0:11:53]} Be7 {[%emt 0:02:17]} 9. Rc1 {[%emt 0:03:40]} O-O {[%emt 0:03:32]} 10. O-O {[%emt 0:00:13]} Nbd7 {[%emt 0:00:33]} 11. Qe2 {[%emt 0:11:28]} c5 {[%emt 0:01:56]} 12. a4 {[%emt 0:08:33]} b4 {[%emt 0:01:42]} 13. Nb1 {[%emt 0:00:42]} Rc8 {[%emt 0:09:54]} 14. Rfd1 {[%emt 0:03:24]} Qb6 {[%emt 0:06:22]} 15. Be1 {[%emt 0:09:28]} Nb8 {[%emt 0:08:48]} 16. Nbd2 {[%emt 0:10:09]} Rfd8 {[%emt 0:02:08]} 17. Nc4 {[%emt 0:02:29]} Qc7 {[%emt 0:06:12]} 18. dxc5 {[%emt 0:13:04]} Bxc5 {[%emt 0:00:54]} 19. Nfe5 {[%emt 0:03:32]} Nc6 {[%emt 0:02:53]} 20. Nxc6 {[%emt 0:02:09]} Qxc6 {[%emt 0:00:47]} 21. f3 {[%emt 0:00:59]} Ba7 {[%emt 0:08:09]} 22. Bxb4 {[%emt 0:03:11]} Rd5 {[%emt 0:06:33]} 23. Rxd5 {[%emt 0:02:47]} Nxd5 {[%emt 0:01:01]} 24. Bd2 {[%emt 0:01:12]} Qd7 {[%emt 0:04:57]} 25. Kh1 {[%emt 0:01:44]} Bb8 {[%emt 0:03:43]} 26. g3 {[%emt 0:03:27]} Qe7 {[%emt 0:07:44]} 27. e4 {[%emt 0:00:44]} Nf6 {[%emt 0:01:34]} 28. Rd1 {[%emt 0:00:33]} h6 {[%emt 0:05:23]} 29. Kg2 {[%emt 0:00:36]} Qc7 {[%emt 0:02:04]} 30. Ba5 {[%emt 0:00:30]} Qc5 {[%emt 0:01:00]} 31. Bc3 {[%emt 0:00:35]} Bc6 {[%emt 0:01:47]} 32. a5 {[%emt 0:00:37]} Bb5 {[%emt 0:01:28]} 33. Bxf6 {[%emt 0:00:27]} gxf6 {[%emt 0:00:23]} 34. Rc1 {[%emt 0:00:27]} Qb4 {[%emt 0:01:28]} 35. Qc2 {[%emt 0:00:39]} Rd8 {[%emt 0:02:22]} 36. Qc3 {[%emt 0:00:34]} Qc5 {[%emt 0:00:45]} 37. Ba2 {[%emt 0:00:29]} Ba7 {[%emt 0:00:39]} 38. Qc2 {[%emt 0:00:24]} Bxc4 {[%emt 0:00:57]} 39. Bxc4 {[%emt 0:00:05]} Rd4 {[%emt 0:01:18]} 40. Bxa6 {[%emt 0:00:56]} Qxa5 {[%emt 0:00:53]} 41. Qc8+ {[%emt 0:30:28]} Kg7 {[%emt 0:30:53]} 42. Rc3 {[%emt 0:00:32]} Rd2+ {[%emt 0:00:39]} 43. Kh3 {[%emt 0:00:07]} Qh5# {[%emt 0:00:34]} 0-1

[Event "CZE-ch Youth G10-G12-G14 2022"]
[Site "Luhacovice"]
[Date "2022.03.17"]
[Round "7.4"]
[White "Silhankova Simona"]
[Black "Romanko Diana"]
[Result "0-1"]
[ECO "C50"]
[WhiteElo "1000"]
[BlackElo "1000"]
[Annotator "NA"]
[PlyCount "24"]
[EventDate "2022.03.12"]
[EventType "swiss"]
[EventCountry "CZE"]
[SourceTitle "playchess.com"]
[Source "ChessBase"]
[SourceQuality "1"]
[TimeControl "40/5400+30:1800+30"]

1. e4 {[%emt 0:00:04]} e5 {[%emt 0:00:25]} 2. Nf3 {[%emt 0:00:10]} Nc6 {[%emt 0:00:11]} 3. Bc4 {[%emt 0:00:21]} Bc5 {[%emt 0:01:23]} 4. O-O {[%emt 0:00:31]} Nf6 {[%emt 0:00:49]} 5. Nc3 {[%emt 0:00:21]} d6 {[%emt 0:01:49]} 6. d3 {[%emt 0:00:19]} Bg4 {[%emt 0:02:38]} 7. h3 {[%emt 0:01:03]} Bh5 {[%emt 0:00:28]} 8. Be3 {[%emt 0:00:39]} Bd4 {[%emt 0:03:11]} 9. Qe1 {[%emt 0:01:43]} Bxf3 {[%emt 0:00:29]} 10. g3 {[%emt 0:03:03]} Qd7 {[%emt 0:02:07]} 11. Rb1 {[%emt 0:03:39]} Qxh3 {[%emt 0:00:36]} 12. Nb5 {[%emt 0:11:59]} Qg2# {[%emt 0:02:32]} 0-1

[Event "CZE-ch Youth G10-G12-G14 2022"]
[Site "Luhacovice"]
[Date "2022.03.17"]
[Round "7.5"]
[White "Mazurkova Viktorie"]
[Black "Lickova, Anna"]
[Result "0-1"]
[ECO "C68"]
[WhiteElo "1000"]
[BlackElo "1016"]
[Annotator "NA"]
[PlyCount "66"]
[EventDate "2022.03.12"]
[EventType "swiss"]
[EventCountry "CZE"]
[SourceTitle "playchess.com"]
[Source "ChessBase"]
[SourceQuality "1"]
[TimeControl "40/5400+30:1800+30"]

1. e4 {[%emt 0:00:02]} e5 {[%emt 0:00:29]} 2. Nf3 {[%emt 0:00:07]} Nc6 {[%emt 0:00:11]} 3. Bb5 {[%emt 0:00:13]} a6 {[%emt 0:00:22]} 4. Be2 {[%emt 0:00:51]} Nf6 {[%emt 0:00:35]} 5. Nc3 {[%emt 0:00:18]} d6 {[%emt 0:02:58]} 6. h3 {[%emt 0:00:49]} Be6 {[%emt 0:03:07]} 7. d3 {[%emt 0:01:00]} d5 {[%emt 0:05:26]} 8. O-O {[%emt 0:01:47]} d4 {[%emt 0:02:34]} 9. Nb1 {[%emt 0:01:35]} Be7 {[%emt 0:05:50]} 10. c3 {[%emt 0:03:34]} h6 {[%emt 0:08:17]} 11. b3 {[%emt 0:07:23]} Qd7 {[%emt 0:01:20]} 12. Kh2 {[%emt 0:02:09]} g5 {[%emt 0:02:14]} 13. Ng1 {[%emt 0:02:28]} O-O-O {[%emt 0:03:20]} 14. a4 {[%emt 0:01:45]} Na5 {[%emt 0:04:56]} 15. Nd2 {[%emt 0:07:04]} dxc3 {[%emt 0:01:03]} 16. Nb1 {[%emt 0:00:17]} Nxb3 {[%emt 0:00:25]} 17. Ra2 {[%emt 0:00:46]} Nxc1 {[%emt 0:00:16]} 18. Rc2 {[%emt 0:00:18]} Nxe2 {[%emt 0:03:27]} 19. Nxe2 {[%emt 0:00:18]} Bb3 {[%emt 0:01:23]} 20. Nbxc3 {[%emt 0:00:57]} Bxc2 {[%emt 0:00:08]} 21. Qxc2 {[%emt 0:00:10]} Qxd3 {[%emt 0:00:52]} 22. Qxd3 {[%emt 0:00:37]} Rxd3 {[%emt 0:00:07]} 23. Nd1 {[%emt 0:00:36]} Rhd8 {[%emt 0:02:51]} 24. Nec3 {[%emt 0:00:52]} Bb4 {[%emt 0:00:41]} 25. Nb2 {[%emt 0:01:43]} Rxc3 {[%emt 0:02:47]} 26. Ra1 {[%emt 0:01:42]} Nxe4 {[%emt 0:00:20]} 27. Kg1 {[%emt 0:01:16]} Nxf2 {[%emt 0:00:20]} 28. Kxf2 {[%emt 0:00:25]} Rc2+ {[%emt 0:00:03]} 29. Kf1 {[%emt 0:00:51]} Rxb2 {[%emt 0:00:09]} 30. Kg1 {[%emt 0:00:57]} Rdd2 {[%emt 0:00:23]} 31. g4 {[%emt 0:00:20]} Rg2+ {[%emt 0:00:30]} 32. Kh1 {[%emt 0:00:30]} Bc5 {[%emt 0:00:13]} 33. Rd1 {[%emt 0:00:54]} Rh2# {[%emt 0:00:02]} 0-1

[Event "CZE-ch Youth G10-G12-G14 2022"]
[Site "Luhacovice"]
[Date "2022.03.17"]
[Round "7.6"]
[White "Jenikova Sabina"]
[Black "Koutna Simona"]
[Result "0-1"]
[ECO "D02"]
[WhiteElo "1076"]
[BlackElo "1000"]
[Annotator "NA"]
[PlyCount "100"]
[EventDate "2022.03.12"]
[EventType "swiss"]
[EventCountry "CZE"]
[SourceTitle "playchess.com"]
[Source "ChessBase"]
[SourceQuality "1"]
[TimeControl "40/5400+30:1800+30"]

1. d4 {[%emt 0:00:05]} Nf6 {[%emt 0:00:07]} 2. Bf4 {[%emt 0:00:27]} g6 {[%emt 0:00:17]} 3. Nf3 {[%emt 0:00:17]} Bg7 {[%emt 0:00:47]} 4. e3 {[%emt 0:00:08]} O-O {[%emt 0:00:31]} 5. Bd3 {[%emt 0:00:35]} d5 {[%emt 0:01:55]} 6. Nbd2 {[%emt 0:00:44]} Nc6 {[%emt 0:01:10]} 7. O-O {[%emt 0:00:20]} Bd7 {[%emt 0:01:27]} 8. h3 {[%emt 0:00:21]} Re8 {[%emt 0:01:21]} 9. c3 {[%emt 0:00:35]} h5 {[%emt 0:05:15]} 10. Qb3 {[%emt 0:00:29]} e6 {[%emt 0:01:40]} 11. Qxb7 {[%emt 0:01:09]} Rb8 {[%emt 0:02:39]} 12. Qa6 {[%emt 0:00:29]} Ng4 {[%emt 0:04:51]} 13. hxg4 {[%emt 0:01:23]} hxg4 {[%emt 0:00:07]} 14. Nh2 {[%emt 0:00:31]} e5 {[%emt 0:01:03]} 15. dxe5 {[%emt 0:00:49]} Bxe5 {[%emt 0:00:14]} 16. Bxe5 {[%emt 0:00:32]} Nxe5 {[%emt 0:00:14]} 17. Nb3 {[%emt 0:01:35]} Nxd3 {[%emt 0:03:55]} 18. Qxd3 {[%emt 0:00:14]} Qh4 {[%emt 0:00:35]} 19. e4 {[%emt 0:01:32]} Kg7 {[%emt 0:00:46]} 20. exd5 {[%emt 0:03:05]} Rh8 {[%emt 0:00:32]} 21. Qg3 {[%emt 0:00:52]} Rh7 {[%emt 0:00:44]} 22. Qxh4 {[%emt 0:00:43]} Rxh4 {[%emt 0:00:08]} 23. g3 {[%emt 0:00:10]} Rh3 {[%emt 0:00:18]} 24. Kg2 {[%emt 0:00:14]} Rbh8 {[%emt 0:00:24]} 25. Rh1 {[%emt 0:00:15]} Bf5 {[%emt 0:00:51]} 26. Nd2 {[%emt 0:00:35]} Bd3 {[%emt 0:01:01]} 27. Rae1 {[%emt 0:00:39]} Bb5 {[%emt 0:00:43]} 28. Re7 {[%emt 0:00:28]} c6 {[%emt 0:00:41]} 29. Re5 {[%emt 0:01:32]} cxd5 {[%emt 0:00:27]} 30. Ree1 {[%emt 0:00:46]} Bc6 {[%emt 0:01:06]} 31. Nxg4 {[%emt 0:00:33]} d4+ {[%emt 0:00:45]} 32. Ne4 {[%emt 0:00:12]} Bxe4+ {[%emt 0:00:34]} 33. Rxe4 {[%emt 0:00:24]} Rxh1 {[%emt 0:00:20]} 34. Rxd4 {[%emt 0:00:54]} Ra1 {[%emt 0:00:47]} 35. Ra4 {[%emt 0:00:27]} Rd8 {[%emt 0:00:37]} 36. Ne3 {[%emt 0:00:55]} Rd2 {[%emt 0:01:35]} 37. b3 {[%emt 0:00:21]} Raxa2 {[%emt 0:00:39]} 38. Rxa2 {[%emt 0:01:12]} Rxa2 {[%emt 0:00:06]} 39. b4 {[%emt 0:00:30]} Ra1 {[%emt 0:00:44]} 40. c4 {[%emt 0:00:10]} Rc1 {[%emt 0:00:29]} 41. c5 {[%emt 0:31:25]} a6 {[%emt 0:30:16]} 42. Nd5 {[%emt 0:01:00]} Rc4 {[%emt 0:01:29]} 43. Kf3 {[%emt 0:00:35]} Rd4 {[%emt 0:00:30]} 44. Nc7 {[%emt 0:00:52]} Rxb4 {[%emt 0:00:38]} 45. Nxa6 {[%emt 0:00:10]} Ra4 {[%emt 0:00:47]} 46. Nb8 {[%emt 0:00:27]} Ra8 {[%emt 0:00:26]} 47. Nd7 {[%emt 0:00:22]} Rd8 {[%emt 0:01:02]} 48. c6 {[%emt 0:00:18]} Rc8 {[%emt 0:00:32]} 49. Ne5 {[%emt 0:00:35]} f6 {[%emt 0:00:32]} 50. Ng4 {[%emt 0:00:38]} Rxc6 {[%emt 0:00:22]} 0-1

[Event "CZE-ch Youth G10-G12-G14 2022"]
[Site "Luhacovice"]
[Date "2022.03.17"]
[Round "7.7"]
[White "Tarielasvili Kira"]
[Black "Hujova Tess"]
[Result "0-1"]
[ECO "C50"]
[WhiteElo "1000"]
[BlackElo "1000"]
[Annotator "NA"]
[PlyCount "50"]
[EventDate "2022.03.12"]
[EventType "swiss"]
[EventCountry "CZE"]
[SourceTitle "playchess.com"]
[Source "ChessBase"]
[SourceQuality "1"]
[TimeControl "40/5400+30:1800+30"]

1. e4 {[%emt 0:14:37]} e5 {[%emt 0:00:30]} 2. Nf3 {[%emt 0:00:30]} Nc6 {[%emt 0:00:30]} 3. Bc4 {[%emt 0:00:30]} Bc5 {[%emt 0:00:30]} 4. Ng5 {[%emt 0:00:30]} Qxg5 {[%emt 0:00:30]} 5. d3 {[%emt 0:00:30]} Qxg2 {[%emt 0:00:30]} 6. Rf1 {[%emt 0:00:30]} Qxh2 {[%emt 0:00:30]} 7. Qf3 {[%emt 0:00:30]} Nf6 {[%emt 0:00:30]} 8. Rh1 {[%emt 0:00:30]} Qxf2+ {[%emt 0:00:30]} 9. Qxf2 {[%emt 0:00:30]} Bxf2+ {[%emt 0:00:18]} 10. Kxf2 {[%emt 0:00:10]} Nd4 {[%emt 0:00:50]} 11. Nc3 {[%emt 0:09:58]} O-O {[%emt 0:00:30]} 12. Be3 {[%emt 0:00:30]} Nxc2 {[%emt 0:00:30]} 13. Rag1 {[%emt 0:00:30]} Nxe3 {[%emt 0:00:30]} 14. Kxe3 {[%emt 0:00:30]} d6 {[%emt 0:00:13]} 15. Rg2 {[%emt 0:07:32]} Ng4+ {[%emt 0:00:30]} 16. Ke2 {[%emt 0:00:30]} g6 {[%emt 0:00:53]} 17. Be6 {[%emt 0:16:26]} Bxe6 {[%emt 0:00:30]} 18. Nd5 {[%emt 0:00:30]} Bxd5 {[%emt 0:00:30]} 19. exd5 {[%emt 0:00:30]} f5 {[%emt 0:01:04]} 20. Rg3 {[%emt 0:33:14]} Rae8 {[%emt 0:00:30]} 21. Rgh3 {[%emt 0:00:30]} h5 {[%emt 0:00:30]} 22. Rc1 {[%emt 0:00:30]} e4 {[%emt 0:00:30]} 23. dxe4 {[%emt 0:01:36]} Rxe4+ {[%emt 0:00:15]} 24. Kf3 {[%emt 0:05:39]} Re3+ {[%emt 0:00:30]} 25. Kg2 {[%emt 0:00:30]} Rxh3 {[%emt 0:00:16]} 0-1